Cogmind - Beta 17 @@@ ROGUE MODE // 2026.07.14 @ 20:26:39 Player: 3.14 Result: Destroyed by G-47 Trooper with Particle Gun Performance ------------- Evolutions (0) 0 Regions Visited (1) 200 Robots Destroyed (14) 70 Value Destroyed (224) 224 Prototype IDs (2) 40 Alien Tech Used (0) 0 Bonus (0) 0 TOTAL SCORE: 534 Bonus ------- None Cogmind --------- Core Integrity 0/250 Matter 149/300 Energy 100/100 System Corruption 0% Temperature Cool (9) Movement Core (50) Location -10/Materials Parts ------- > --- POWER (1) -------- (None) > --- PROPULSION (2) --- (None) > --- UTILITY (2) ------ (None) > --- WEAPON (2) ------- (None) > --- INVENTORY (5) ---- Improved Ion Engine Seismic Detector Light Assault Rifle Grenade Launcher Mining Laser Peak State ------------ > --- POWER ------------ Improved Ion Engine > --- PROPULSION ------- Light Treads Light Treads > --- UTILITY ---------- Huge Storage Unit Seismic Detector > --- WEAPON ----------- Assault Rifle Light Assault Rifle > --- INVENTORY -------- Improved Ion Engine Seismic Detector Medium Laser Light EM Pulse Cannon Light Assault Rifle Light Assault Rifle Grenade Launcher Mining Laser [Rating: 9] Favorites ----------- Power Ion Engine Engine Ion Engine Propulsion Light Treads Treads Light Treads Utility Small Storage Unit Device Seismic Detector Storage Small Storage Unit Weapon Assault Rifle Energy Gun Medium Laser Ballistic Gun Assault Rifle Build | -11 -10 ------- Run | Yrd Mat Slots Evolved . | . . Power . | . . Propulsion . | . . Utility . | . . Weapon . | . . Parts Attached 11 | 7 4 Power 2 | 1 1 Engine 2 | 1 1 Core . | . . Reactor . | . . Propulsion 2 | 2 . Treads 2 | 2 . Leg . | . . Wheel . | . . Hover . | . . Flight . | . . Utility 3 | 2 1 Device 1 | 1 . Storage 2 | 1 1 Processor . | . . Hackware . | . . Protection . | . . Artifact . | . . Weapon 4 | 2 2 Energy Gun 1 | 1 . Energy Cannon . | . . Ballistic Gun 3 | 1 2 Ballistic Cannon . | . . Launcher . | . . Special Weapon . | . . Impact Weapon . | . . Slashing Weapon . | . . Piercing Weapon . | . . Special Melee Weapon . | . . Unidentified Prototypes . | . . Parts Lost 1 | . 1 Power . | . . Propulsion 1 | . 1 Utility . | . . Weapon . | . . Highest Loss Streak 1 | . 1 To Critical Strikes . | . . Average Backups 7 | 3 7 Power . | . 1 Propulsion 1 | 1 1 Utility 1 | . 2 Weapon 2 | 1 3 Tool/Special . | . . Unused Backups 15 | . 15 Power 2 | . 2 Propulsion 2 | . 2 Utility 1 | . 1 Weapon 10 | . 10 Tool/Special . | . . Average Slot Usage (%) 91 | . 91 Engine 13 | . 13 Treads 26 | . 26 Device 9 | . 9 Storage 13 | . 13 Energy Gun 2 | . 2 Ballistic Gun 24 | . 24 Peak Build Rating 9 | 7 9 Average Rating 6 | 5 6 On Entrance 3 | . 7 Avg Prop Armor Cover (%) . | . . Naked Turns 20 | . 20 Heaviest Build 91 | 15 91 Greatest Support 40 | 40 40 Greatest Overweight (x) 2 | . 2 Average Overweight (x) . | . . Largest Inventory Capacity 25 | 8 25 Average Capacity 9 | 7 9 Most Carried 11 | 6 11 Average Carried 7 | 3 7 Final Capacity 8 | 8 5 Final Carried 6 | 6 5 Class Distribution -------------------- 100% | Mutant Dominant Class ---------------- Mutant | -10/Materials Resources | -11 -10 ----------- Run | Yrd Mat Matter Collected 387 | 285 102 Remotely . | . . Salvage Created 375 | 128 247 Parts 26 | 7 19 Haulers Intercepted . | . . Recyclers Shooed . | . . Parts Field Recycled . | . . Retrieved Matter . | . . Parts Self-Destructed . | . . Prevented . | . . Parts Restored . | . . Kills | -11 -10 ------- Run | Yrd Mat Combat Hostiles Destroyed 9 | . 9 Guns 9 | . 9 Classes Destroyed 5 | 2 3 Tunneler 2 | 2 . Recycler 1 | 1 . Operator 2 | . 2 Swarmer 6 | . 6 Grunt 3 | . 3 Best Kill Streak 3 | 3 3 Combat Bots Only 3 | . 3 Max Kills in Single Turn 1 | 1 1 Gunslinging . | . . Exploded . | . . Melee . | . . Uniques/NPCs Destroyed . | . . Combat | -11 -10 -------- Run | Yrd Mat Hostile Shots Fired 96 | . 96 Missed 19 | . 19 Hits 77 | . 77 Projectile 77 | . 77 Damage Taken 770 | . 770 Core 256 | . 256 Absorbed by Shields . | . . Regen/Repaired (Parts) 98 | . 98 Core Remaining (%) 100 | 100 . Volleys Fired 51 | 5 46 Largest 2 | 2 2 Hottest 70 | 70 70 Shots Fired 101 | 10 91 Gun 101 | 10 91 Cannon . | . . Launcher . | . . Special . | . . Kinetic 84 | 5 79 Thermal 17 | 5 12 Explosive . | . . Electromagnetic . | . . Robot Hit Streak 12 | 4 12 Robot Miss Streak 4 | 1 4 Penetration Max . | . . Secondary Targets 4 | . 4 Max Gunslinging Chain 1 | . 1 Shots Hit Robots 63 | 7 56 Core Hits 21 | 4 17 Critical Kills . | . . Critical Parts Destroyed . | . . Critical Strikes 1 | 1 . Burn 1 | 1 . Melee Attacks . | . . Impact . | . . Slashing . | . . Piercing . | . . Sneak Attacks . | . . Combat Hostiles . | . . Follow-up Attacks . | . . Damage Inflicted 774 | 95 679 Guns 767 | 92 675 Cannons . | . . Explosions . | . . Melee . | . . Ramming 7 | 3 4 Kinetic 617 | 54 563 Thermal 150 | 38 112 Explosive . | . . Electromagnetic . | . . Impact . | . . Slashing . | . . Piercing . | . . Highest Corruption . | . . Average Corruption . | . . Corruption Purged . | . . Corruption Blocked . | . . Overload Shots . | . . Overflow Damage . | . . Projectiles . | . . Explosions . | . . Melee . | . . Knockbacks . | . . Impact . | . . Kinetic . | . . Secondary . | . . Self-Inflicted Damage . | . . Shots . | . . Rammed 4 | 2 2 Targets Rammed 4 | 2 2 Kicked . | . . Crushed . | . . Highest Temperature 111 | 18 111 Average Temperature 27 | 9 31 Received Heat Transfer 243 | . 243 Siege Activations . | . . Martial Activations . | . . Shielding Activations . | . . Robots Disrupted . | . . Combat Hostiles . | . . Robots Corrupted . | . . Combat Hostiles . | . . Parts Fried . | . . Impact Corruptions . | . . Robots Melted . | . . Combat Hostiles . | . . Parts Melted 2 | . 2 Heat Transferred 518 | 185 333 Parts Sabotaged . | . . Parts Stolen . | . . Parts Stripped . | . . Power Chain Reactions . | . . Alert | -11 -10 ------- Run | Yrd Mat Maximum Alert Level . | . . Low Security (%) 100 | 100 100 Level 1 . | . . Level 2 . | . . Level 3 . | . . Level 4 . | . . Level 5 . | . . High Security . | . . Max Security . | . . Peak Influence 83 | 10 83 Initial . | . . Average 22 | 1 26 Influence Increases 303 | 15 288 Destroy 0b10 Robot/C 180 | . 180 Destroy 0b10 Robot/NC 25 | 15 10 Destroy Leader 40 | . 40 Successful Hack 13 | . 13 Disable Machine 15 | . 15 Lose Combat Pursuer 30 | . 30 Influence Decreases 266 | 15 251 Time Decay 256 | 15 241 Lost Part 10 | . 10 Squads Dispatched 2 | . 2 Investigation . | . . Extermination . | . . Reinforcement 2 | . 2 Assault . | . . Garrison . | . . Intercept . | . . Searches Triggered . | . . Construction Impeded . | . . Haulers Reinforced . | . . Active Scanning Responses . | . . Cargo Convoy Interrupts . | . . Stealth | -11 -10 --------- Run | Yrd Mat Distress Signals 1 | . 1 Communications Jammed . | . . Distress Signals . | . . Times Spotted 18 | . 18 Peak Tracking Total 3 | . 3 Tactical Retreats 2 | . 2 Traps | -11 -10 ------- Run | Yrd Mat Traps Triggered . | . . Indirectly . | . . Trap Hack Attempts . | . . Triggered . | . . Disarmed . | . . Reprogrammed . | . . Reused . | . . Traps Extracted . | . . Installed . | . . Triggered . | . . Machines | -11 -10 ---------- Run | Yrd Mat Machines Disabled 1 | . 1 Max in Single Turn 1 | . 1 Machines Repaired . | . . Machines Dismantled . | . . Machines Sabotaged . | . . Overloaded Fab Kills . | . . Hacking | -11 -10 --------- Run | Yrd Mat Machines Accessed 3 | . 3 Terminals 2 | . 2 Fabricators . | . . Repair Stations 1 | . 1 Recycling Units . | . . Scanalyzers . | . . Garrison Access . | . . Total Hacks 10 | . 10 Successful 6 | . 6 Failed 4 | . 4 Catastrophic . | . . Database Lockouts . | . . Manual 4 | . 4 Terminals 7 | . 7 Fabricators . | . . Repair Stations 3 | . 3 Recycling Units . | . . Scanalyzers . | . . Garrison Access . | . . Terminal Hacks 2 | . 2 Prototype ID Bank 1 | . 1 Locate Traps 1 | . 1 Fabricator Hacks . | . . Repair Station Hacks 2 | . 2 Scan Component 1 | . 1 Repair 1 | . 1 Recycling Unit Hacks . | . . Scanalyzer . | . . Garrison Access Hacks . | . . Unauthorized Hacks 2 | . 2 Terminals 2 | . 2 Skim 2 | . 2 Fabricators . | . . Repair Stations . | . . Recycling Units . | . . Scanalyzers . | . . Garrison Access . | . . Data Cores Recovered . | . . Used . | . . Hacking Detections 2 | . 2 Full Trace Events 1 | . 1 Feedback Events . | . . Feedback Blocked . | . . Robot Schematics Acquired . | . . Robots Built . | . . Authchips . | . . Time . | . . Total Robot Build Rating . | . . Part Schematics Acquired . | . . Parts Built . | . . Authchips . | . . Time . | . . Total Part Build Rating . | . . Part Studies Acquired . | . . Parts Repaired 1 | . 1 Time 26 | . 26 Parts Recycled . | . . Recycled Matter . | . . Retrieved Matter . | . . Retrieved Components . | . . Parts Scanalyzed . | . . Part Schematics Acquired . | . . Parts Damaged . | . . Bothacking | -11 -10 ------------ Run | Yrd Mat Used RIF Installer . | . . Robots Hacked . | . . Non-combat . | . . Combat . | . . Robot Hacks Applied . | . . Relay Couplers Released . | . . Fabnet Peak Effective % . | . . Robots Rewired . | . . Allies Hacked . | . . Hacks Repelled . | . . Allies | -11 -10 -------- Run | Yrd Mat Total Allies . | . . Largest Group . | . . Highest-Rated Group . | . . Highest-Rated Ally . | . . Total Orders . | . . Ally Attacks . | . . Total Damage . | . . Kills . | . . Allies Corrupted . | . . Allies Melted . | . . Intel | -11 -10 ------- Run | Yrd Mat Active Infowar (turns) 498 | 39 459 Seismic 498 | 39 459 Robot Analysis Total . | . . Derelict Logs Recovered . | . . Drone Launches . | . . Drone Recoveries . | . . Exploration | -11 -10 ------------- Run | Yrd Mat Turns Passed 824 | 116 708 Spaces Moved 305 | 53 252 Core 3 | 3 . Treads 302 | 50 252 Legs . | . . Wheels . | . . Hover . | . . Flight . | . . Fastest Speed 50 | 50 160 Average Speed 167 | 153 170 Slowest Speed 320 | 160 320 Overloaded Moves . | . . Propulsion Burnouts . | . . Robots Hopped . | . . Potential Cave-ins . | . . Cave-ins Triggered . | . . Exploration Rate (%) 23 | 4 43 Regions Visited 1 Branch Regions . Pre-discovered Areas . | . . Known Exits Taken . | . . Unknown Exits Taken 1 | 1 . Scrap Searched . | . . Spaces Dug . | . . Terrain Destroyed . | . . Melee . | . . Projectile . | . . AOE . | . . Terrain Rammed . | . . Walls Destroyed . | . . Machines Disabled . | . . Actions | -11 -10 --------- Run | Yrd Mat Total 519 | 73 446 Wait 121 | . 121 Move 305 | 53 252 Hop . | . . Pick Up 17 | 7 10 Fast Attach 8 | 6 2 Attach 2 | 1 1 Detach 1 | . 1 Swap 3 | . 3 Drop 8 | . 8 Fire 51 | 5 46 Melee . | . . Ram . | . . Kick . | . . Crush 3 | 1 2 Escape Stasis . | . . Rewire . | . . Trap . | . . Miscellaneous . | . . Route ------- -11/Scrapyard -10/Materials (discovered 2 exits: [*Mat] / [*Min]) History --------- Turn | Location | Event 6 | -11/Scrapyard | Discovered new exit (range 16) 117 | -11/Scrapyard | Entered Materials 258 | -10/Materials | Discovered new exit (range 12) 305 | -10/Materials | Build established: Mutant 649 | -10/Materials | Repaired Lgt. Treads 701 | -10/Materials | Discovered new exit (range 6) 805 | -10/Materials | Released all parts (6) 806 | -10/Materials | Core integrity fell below 50% 818 | -10/Materials | Core integrity fell below 20% 825 | -10/Materials | Destroyed by G-47 Trooper with Particle Gun Last Messages --------------- 00691_ Acquired 19 matter. 00694_ Dropped Lgt. Assault Rifle. 00694_ Acquired Lgt. Assault Rifle. 00694_ Dropped Aluminum Leg. 00696_ Acquired Lgt. Assault Rifle. 00697_ Acquired 18 matter. 00701_ EXIT=FOUND 00710_ Dropped Ion Engine. 00713_ Acquired Imp. Ion Engine. 00723_ Dropped Sml. Storage Unit. 00743_ Acquired Lgt. EM Pulse Cannon. 00788_ G-34 Mercenary destroyed. 00799_ Lgt. Treads destroyed. 00805_ Released Huge Storage Unit. 00805_ Released Imp. Ion Engine. 00805_ Released Lgt. Treads. 00805_ Released Lgt. Assault Rifle. 00805_ Released Seismic Detector. 00805_ Released Assault Rifle. 00824_ K-01 Serf collects debris. Map ----- +----------------------------------------------------+ | | | | | | | | | ?????????????????????????????????? | | ?????????????????????????????????? | | ?????????????????????????????????? | | ?????????????????????????????????? | | ?????????????????????????????????? | | ?????????????????????????????????? | | ?????????????????????????????????? | | ?????????????????????????????????? | | ?????????????????????????????????? | | ?????????????????????????????????? | | ?????????????????????????????????? | | ?????????????????????????????????? | | ?????????????????????????????????? | | ?????????????????????????????????? | | ????????????????????????????#####? | | ????????????????????????##### #? | | ????????????????######### #? | | ????????????????# ## < **#? | | ????????????????# ## ** #? | | ????????????????# """##[]! !!#? | | ????????????????# R"##!]= !!#? | | ????????????????# """##@]]#####? | | ????????????????# ! =[ ##%g[##???? | | ####################+###[!*[ #???? | | %!= = #???? | | = k%=T #???? | | #???? | | ######## ############# #???? | | ???????# #???????????## ##???? | | ???????# #????????????# #????? | | ???????# #????????????# #????? | | ???????# #????????????# #????? | | ???????# #????????????# #????? | | ???????# #????????????# #????? | | #??????# #????????????# #????? | | #??????# #????????????? #????? | | #??????# #????????????? #????? | | #??????# #????????????? #????? | | #??????# #?????????????? ??????? | | #?????? ?????????????????????? | | #??????? ??????????????????????? | | #????????????????????????????????? | | ?????????????????????????????????? | | ?????????????????????????????????? | | ?????????????????????????????????? | | ????^????????????????????????????? | +----------------------------------------------------+ Best States ------------- Heat Dissipation 25 Energy Generation 12 Energy Capacity 265 Matter Stores 300 Matter Capacity 300 Sight Range 16 Terrain Scan Density 10 Evasion (%) 40 Recoil Reduction 2 Item Schematics ----------------- None Robot Schematics ------------------ None Fabricated ------------ Nothing Repaired ---------- Lgt. Treads | 30% | -10/Materials Studied --------- None Alien Tech Used ----------------- None Achievements -------------- None Challenges ------------ None Game ------ Seed MicroLinkedDirector Manual? 0 Play Time 00:07:04 Cumulative 976.6 hours Start 2026.07.14 @ 20:21:43 End 2026.07.14 @ 20:26:39 Sessions 1 Manual Loads 0 Difficulty Rogue Special Mode None Game No. 1661 Rogue 1661 Adventurer 0 Explorer 0 Win Type - Total 95 Types 56/1/16/16/4/0/0/1/0/1 Lore% 93 Gallery% 80 Achievement% 69 Wizard Run 0 Options --------- Layout 0 ASCII 1 Keyboard 0 Movement Numpad Keybinds 1 Fullscreen 2 Font 18/SmallcapsGlow Map View 76x50 Zoom Use 0% Tactical HUD 1 Map Filters NONE Filters NONE Steam 1 RUN: 4190172b-488c-4565-beed-43f9171b1f57